[Event "Early-Titled-Tuesday-Blitz-October-10-2023"]
[Site "Chess.com"]
[Date "2023.10.10"]
[Round "6"]
[White "Oleksandr_Bortnyk"]
[Black "Alex_Sahakyan2006"]
[Result "1-0"]
[WhiteElo "3056"]
[BlackElo "2718"]
[TimeControl "180+1"]
[EndTime "9:05:09 PDT"]
[Termination "Oleksandr_Bortnyk won by checkmate"]

1. e4 {[%clk 0:02:56.6]} 1... c5 {[%clk 0:02:58.5]} 2. c3 {[%clk 0:02:54.9]}
2... d5 {[%clk 0:02:54.2]} 3. exd5 {[%clk 0:02:55.8]} 3... Qxd5 {[%clk
0:02:54.2]} 4. d4 {[%clk 0:02:55.4]} 4... Nf6 {[%clk 0:02:53.4]} 5. Be3 {[%clk
0:02:55.7]} 5... Nc6 {[%clk 0:02:51.1]} 6. Nf3 {[%clk 0:02:54.5]} 6... Bg4
{[%clk 0:02:51.4]} 7. dxc5 {[%clk 0:02:42.4]} 7... Qxd1+ {[%clk 0:02:51.1]} 8.
Kxd1 {[%clk 0:02:43.3]} 8... Nd5 {[%clk 0:02:22.1]} 9. Bb5 {[%clk 0:02:19.9]}
9... Nxe3+ {[%clk 0:02:14.5]} 10. fxe3 {[%clk 0:02:20.8]} 10... O-O-O+ {[%clk
0:02:14.4]} 11. Kc2 {[%clk 0:02:01]} 11... f6 {[%clk 0:02:02.5]} 12. Bxc6 {[%clk
0:01:56.3]} 12... bxc6 {[%clk 0:02:02.4]} 13. Nbd2 {[%clk 0:01:57]} 13... e5
{[%clk 0:02:02.1]} 14. b4 {[%clk 0:01:56.9]} 14... h5 {[%clk 0:01:55.3]} 15. h3
{[%clk 0:01:56.2]} 15... Bf5+ {[%clk 0:01:53.8]} 16. e4 {[%clk 0:01:56.7]} 16...
Be6 {[%clk 0:01:52.5]} 17. Nh4 {[%clk 0:01:55.7]} 17... Kb7 {[%clk 0:01:43.9]}
18. a4 {[%clk 0:01:49]} 18... Rg8 {[%clk 0:01:39.6]} 19. Ng6 {[%clk 0:01:48.5]}
19... Bf7 {[%clk 0:01:38.9]} 20. Nxf8 {[%clk 0:01:48.6]} 20... Rgxf8 {[%clk
0:01:38.1]} 21. Rad1 {[%clk 0:01:35.9]} 21... Bg6 {[%clk 0:01:31.4]} 22. Rhe1
{[%clk 0:01:33.8]} 22... f5 {[%clk 0:01:20.7]} 23. exf5 {[%clk 0:01:24.2]} 23...
Rxf5 {[%clk 0:01:21.6]} 24. Kc1 {[%clk 0:01:04.4]} 24... Rg5 {[%clk 0:01:14]}
25. Nf3 {[%clk 0:00:53]} 25... Rxd1+ {[%clk 0:01:10.3]} 26. Rxd1 {[%clk
0:00:53.9]} 26... Rxg2 {[%clk 0:01:10.4]} 27. Rd7+ {[%clk 0:00:54.4]} 27... Kc8
{[%clk 0:00:59.1]} 28. Rxg7 {[%clk 0:00:53.4]} 28... Rc2+ {[%clk 0:00:59.3]} 29.
Kd1 {[%clk 0:00:54]} 29... Be4 {[%clk 0:00:59.9]} 30. Nxe5 {[%clk 0:00:43.2]}
30... Rxc3 {[%clk 0:00:56.3]} 31. Nf7 {[%clk 0:00:32.5]} 31... Bd5 {[%clk
0:00:38.8]} 32. Nd6+ {[%clk 0:00:33.1]} 32... Kd8 {[%clk 0:00:38.5]} 33. h4
{[%clk 0:00:23.9]} 33... Rh3 {[%clk 0:00:35.1]} 34. b5 {[%clk 0:00:20.8]} 34...
Bb3+ {[%clk 0:00:20]} 35. Kd2 {[%clk 0:00:19.3]} 35... Bxa4 {[%clk 0:00:19.3]}
36. b6 {[%clk 0:00:18.9]} 36... axb6 {[%clk 0:00:16.1]} 37. cxb6 {[%clk
0:00:19.8]} 37... Rb3 {[%clk 0:00:14.9]} 38. b7 {[%clk 0:00:12.8]} 38... c5
{[%clk 0:00:15.2]} 39. Nc4 {[%clk 0:00:06.6]} 39... Bd7 {[%clk 0:00:11.1]} 40.
Na5 {[%clk 0:00:03.5]} 40... Rb5 {[%clk 0:00:10.5]} 41. Kc3 {[%clk 0:00:04.4]}
41... Kc7 {[%clk 0:00:09.4]} 42. Kc4 {[%clk 0:00:03.7]} 42... Rxa5 {[%clk
0:00:09.8]} 43. Rxd7+ {[%clk 0:00:04.1]} 43... Kb8 {[%clk 0:00:10.5]} 44. Rh7
{[%clk 0:00:05]} 44... Ra4+ {[%clk 0:00:10.7]} 45. Kb5 {[%clk 0:00:04.3]} 45...
Rxh4 {[%clk 0:00:11.3]} 46. Kc6 {[%clk 0:00:03.8]} 46... Rb4 {[%clk 0:00:04.9]}
47. Rh8+ {[%clk 0:00:04.1]} 47... Ka7 {[%clk 0:00:05.2]} 48. Ra8# {[%clk
0:00:05]} 1-0

[Event "Early-Titled-Tuesday-Blitz-October-10-2023"]
[Site "Chess.com"]
[Date "2023.10.10"]
[Round "6"]
[White "RCone"]
[Black "invisible_s0ul"]
[Result "1-0"]
[WhiteElo "2486"]
[BlackElo "2301"]
[TimeControl "180+1"]
[EndTime "9:05:09 PDT"]
[Termination "RCone won by resignation"]

1. e4 {[%clk 0:02:55.8]} 1... c5 {[%clk 0:02:55.7]} 2. Nc3 {[%clk 0:02:54.5]}
2... Nc6 {[%clk 0:02:54.8]} 3. Bb5 {[%clk 0:02:52.2]} 3... Nd4 {[%clk 0:02:52]}
4. Nf3 {[%clk 0:02:52.6]} 4... Nxb5 {[%clk 0:02:49.5]} 5. Nxb5 {[%clk
0:02:53.5]} 5... a6 {[%clk 0:02:48.1]} 6. Nc3 {[%clk 0:02:53.8]} 6... b5 {[%clk
0:02:45.6]} 7. d4 {[%clk 0:02:51.5]} 7... cxd4 {[%clk 0:02:32.5]} 8. Qxd4 {[%clk
0:02:49.7]} 8... Bb7 {[%clk 0:02:33]} 9. a4 {[%clk 0:02:45]} 9... Bc6 {[%clk
0:01:39.2]} 10. O-O {[%clk 0:02:42.2]} 10... d6 {[%clk 0:01:29.1]} 11. Bg5
{[%clk 0:02:35.1]} 11... Nf6 {[%clk 0:01:28.9]} 12. Bxf6 {[%clk 0:02:34.6]}
12... gxf6 {[%clk 0:01:29.8]} 13. axb5 {[%clk 0:02:24.6]} 13... axb5 {[%clk
0:01:30.7]} 14. Nd5 {[%clk 0:02:23.5]} 14... Bg7 {[%clk 0:01:17.7]} 15. Rxa8
{[%clk 0:02:08]} 15... Bxa8 {[%clk 0:01:16.9]} 16. Qa7 {[%clk 0:01:57.5]} 16...
Bxd5 {[%clk 0:01:14.6]} 17. exd5 {[%clk 0:01:58.4]} 17... O-O {[%clk 0:01:13]}
18. Re1 {[%clk 0:01:59.1]} 18... Qa8 {[%clk 0:01:04.4]} 19. Qxe7 {[%clk
0:01:39.6]} 19... Qxd5 {[%clk 0:01:03.1]} 20. h3 {[%clk 0:01:22]} 20... Rc8
{[%clk 0:00:51.9]} 21. c3 {[%clk 0:01:20.4]} 21... h6 {[%clk 0:00:34.2]} 22. Qe4
{[%clk 0:01:10.8]} 22... Qxe4 {[%clk 0:00:30]} 23. Rxe4 {[%clk 0:01:11.7]} 23...
Ra8 {[%clk 0:00:22]} 24. Rb4 {[%clk 0:01:10.2]} 24... Ra5 {[%clk 0:00:18.8]} 25.
Nd4 {[%clk 0:01:09.5]} 25... d5 {[%clk 0:00:13.5]} 26. Rxb5 {[%clk 0:01:06.1]}
26... Rxb5 {[%clk 0:00:14]} 27. Nxb5 {[%clk 0:01:06.2]} 27... f5 {[%clk
0:00:13.3]} 28. Kf1 {[%clk 0:01:00]} 28... Kf8 {[%clk 0:00:13.1]} 29. Nd4 {[%clk
0:00:52.6]} 29... f4 {[%clk 0:00:13.1]} 30. Ke2 {[%clk 0:00:49.5]} 30... Ke8
{[%clk 0:00:05.3]} 31. Kf3 {[%clk 0:00:49.8]} 31... Be5 {[%clk 0:00:03.4]} 32.
Kg4 {[%clk 0:00:49.3]} 32... Kd7 {[%clk 0:00:03]} 33. Kf5 {[%clk 0:00:49.7]}
33... Bc7 {[%clk 0:00:02.9]} 34. Kf6 {[%clk 0:00:41.7]} 34... Ke8 {[%clk
0:00:02.3]} 35. Kg7 {[%clk 0:00:37.5]} 35... h5 {[%clk 0:00:01.9]} 36. Kh6
{[%clk 0:00:36.8]} 36... h4 {[%clk 0:00:02.6]} 37. Kg5 {[%clk 0:00:37]} 37...
Ke7 {[%clk 0:00:01.7]} 38. Kxh4 {[%clk 0:00:36.7]} 38... Kf6 {[%clk 0:00:01.7]}
39. Kg4 {[%clk 0:00:35.4]} 39... Ke5 {[%clk 0:00:02.3]} 40. Nf3+ {[%clk
0:00:34.5]} 40... Kf6 {[%clk 0:00:02.4]} 41. h4 {[%clk 0:00:30.1]} 41... Kg6
{[%clk 0:00:02.7]} 42. h5+ {[%clk 0:00:30.5]} 42... Kh6 {[%clk 0:00:03]} 43. Nd4
{[%clk 0:00:28.2]} 43... Be5 {[%clk 0:00:01.5]} 44. Nf5+ {[%clk 0:00:27.2]}
44... Kh7 {[%clk 0:00:02.2]} 45. f3 {[%clk 0:00:19.1]} 45... Bc7 {[%clk
0:00:02]} 46. Ne7 {[%clk 0:00:17.9]} 46... Bd6 {[%clk 0:00:01.4]} 47. Nxd5
{[%clk 0:00:17.9]} 47... Kh6 {[%clk 0:00:01.6]} 48. Nxf4 {[%clk 0:00:17.8]} 1-0

[Event "Early-Titled-Tuesday-Blitz-October-10-2023"]
[Site "Chess.com"]
[Date "2023.10.10"]
[Round "6"]
[White "Virgo15"]
[Black "Djager97"]
[Result "0-1"]
[WhiteElo "2723"]
[BlackElo "2590"]
[TimeControl "180+1"]
[EndTime "9:05:10 PDT"]
[Termination "Djager97 won by resignation"]

1. d4 {[%clk 0:02:33.3]} 1... d5 {[%clk 0:02:58.5]} 2. c4 {[%clk 0:02:33]} 2...
e6 {[%clk 0:02:59.1]} 3. Nf3 {[%clk 0:02:31.8]} 3... c6 {[%clk 0:02:59.1]} 4. g3
{[%clk 0:02:31.1]} 4... Nf6 {[%clk 0:02:58.4]} 5. Bg2 {[%clk 0:02:31.8]} 5...
Be7 {[%clk 0:02:57]} 6. O-O {[%clk 0:02:32.1]} 6... O-O {[%clk 0:02:57.7]} 7.
Nc3 {[%clk 0:02:32.7]} 7... b6 {[%clk 0:02:56.1]} 8. Nd2 {[%clk 0:02:33]} 8...
Ba6 {[%clk 0:02:45.5]} 9. b3 {[%clk 0:02:29]} 9... Nbd7 {[%clk 0:02:43.9]} 10.
e4 {[%clk 0:02:29.3]} 10... c5 {[%clk 0:02:35.4]} 11. e5 {[%clk 0:02:29.1]}
11... Ne8 {[%clk 0:02:31.2]} 12. cxd5 {[%clk 0:02:27.1]} 12... Bxf1 {[%clk
0:02:28.8]} 13. Nxf1 {[%clk 0:02:25.4]} 13... exd5 {[%clk 0:02:21.4]} 14. Nxd5
{[%clk 0:02:24.6]} 14... Rc8 {[%clk 0:02:18.5]} 15. Ba3 {[%clk 0:02:25]} 15...
Nc7 {[%clk 0:02:12.8]} 16. Nxe7+ {[%clk 0:02:20.6]} 16... Qxe7 {[%clk
0:02:12.5]} 17. f4 {[%clk 0:02:21.2]} 17... Nb5 {[%clk 0:02:07]} 18. Bb2 {[%clk
0:02:17.6]} 18... Nxd4 {[%clk 0:02:07]} 19. Bxd4 {[%clk 0:02:13.5]} 19... cxd4
{[%clk 0:02:07.9]} 20. Nd2 {[%clk 0:02:04.9]} 20... Nc5 {[%clk 0:02:04.7]} 21.
Nc4 {[%clk 0:02:03.9]} 21... Rcd8 {[%clk 0:01:58.3]} 22. Nd6 {[%clk 0:02:03.2]}
22... f6 {[%clk 0:01:54.6]} 23. Qxd4 {[%clk 0:01:49.4]} 23... fxe5 {[%clk
0:01:53.6]} 24. fxe5 {[%clk 0:01:50.1]} 24... Kh8 {[%clk 0:01:44.5]} 25. Qd5
{[%clk 0:01:44.6]} 25... Nd7 {[%clk 0:01:32.4]} 26. Nc4 {[%clk 0:01:31.4]} 26...
Rde8 {[%clk 0:01:13.1]} 27. Re1 {[%clk 0:01:29.6]} 27... Qc5+ {[%clk 0:01:05.7]}
28. Qxc5 {[%clk 0:01:27.5]} 28... Nxc5 {[%clk 0:01:06.6]} 29. Bd5 {[%clk
0:01:22]} 29... Re7 {[%clk 0:00:56.8]} 30. Re3 {[%clk 0:01:14.5]} 30... g6
{[%clk 0:00:50.4]} 31. a4 {[%clk 0:01:13.7]} 31... Kg7 {[%clk 0:00:49.1]} 32.
Kg2 {[%clk 0:01:13.7]} 32... Nd7 {[%clk 0:00:42.2]} 33. Bc6 {[%clk 0:01:05.8]}
33... Rf5 {[%clk 0:00:29.8]} 34. g4 {[%clk 0:00:57.6]} 34... Rg5 {[%clk
0:00:29.9]} 35. Bxd7 {[%clk 0:00:54.3]} 35... Rxd7 {[%clk 0:00:27.9]} 36. Kg3
{[%clk 0:00:54.9]} 36... h5 {[%clk 0:00:24.9]} 37. h3 {[%clk 0:00:55.4]} 37...
hxg4 {[%clk 0:00:23.5]} 38. hxg4 {[%clk 0:00:55.8]} 38... Rd4 {[%clk 0:00:23.6]}
39. e6 {[%clk 0:00:50.9]} 39... Rgxg4+ {[%clk 0:00:23.3]} 40. Kf3 {[%clk
0:00:50.5]} 40... Rgf4+ {[%clk 0:00:23.2]} 41. Kg3 {[%clk 0:00:50.6]} 41... Rfe4
{[%clk 0:00:22.4]} 42. Kf3 {[%clk 0:00:40.9]} 42... Rxe3+ {[%clk 0:00:19.2]} 43.
Kxe3 {[%clk 0:00:41.8]} 43... Rd1 {[%clk 0:00:18.8]} 44. Ne5 {[%clk 0:00:33.9]}
44... Kf6 {[%clk 0:00:18.5]} 45. e7 {[%clk 0:00:34.5]} 45... Kxe7 {[%clk
0:00:16.4]} 46. Nxg6+ {[%clk 0:00:35]} 46... Kd6 {[%clk 0:00:16.9]} 47. Nf4
{[%clk 0:00:33.9]} 47... Rb1 {[%clk 0:00:16.8]} 48. Kd4 {[%clk 0:00:33.4]} 48...
Rxb3 {[%clk 0:00:16.5]} 49. Kc4 {[%clk 0:00:34.1]} 49... Rf3 {[%clk 0:00:13.1]}
50. Nd3 {[%clk 0:00:33.3]} 50... Rxd3 {[%clk 0:00:12.4]} 51. Kxd3 {[%clk
0:00:33.4]} 51... Kc5 {[%clk 0:00:13.1]} 52. Kc3 {[%clk 0:00:34.3]} 52... a5
{[%clk 0:00:12.9]} 53. Kb3 {[%clk 0:00:32.7]} 53... Kd4 {[%clk 0:00:13.2]} 54.
Ka3 {[%clk 0:00:33.5]} 54... Kc3 {[%clk 0:00:13.3]} 55. Ka2 {[%clk 0:00:34.4]}
55... Kb4 {[%clk 0:00:13.9]} 56. Kb2 {[%clk 0:00:35.3]} 56... Kxa4 {[%clk
0:00:14.5]} 57. Ka2 {[%clk 0:00:36.2]} 57... b5 {[%clk 0:00:15.1]} 58. Kb2
{[%clk 0:00:36.8]} 58... b4 {[%clk 0:00:15.8]} 59. Ka2 {[%clk 0:00:37.7]} 59...
b3+ {[%clk 0:00:16.4]} 60. Kb1 {[%clk 0:00:38.6]} 60... Ka3 {[%clk 0:00:16.8]}
61. Ka1 {[%clk 0:00:39.5]} 61... b2+ {[%clk 0:00:16.7]} 62. Kb1 {[%clk
0:00:40.1]} 62... a4 {[%clk 0:00:17.2]} 0-1

[Event "Early-Titled-Tuesday-Blitz-October-10-2023"]
[Site "Chess.com"]
[Date "2023.10.10"]
[Round "6"]
[White "stasOR4ik"]
[Black "Alina_Gumerovna"]
[Result "0-1"]
[WhiteElo "2423"]
[BlackElo "2123"]
[TimeControl "180+1"]
[EndTime "9:05:13 PDT"]
[Termination "Alina_Gumerovna won on time"]

1. e4 {[%clk 0:03:00.9]} 1... e6 {[%clk 0:02:59.3]} 2. d4 {[%clk 0:02:59.7]}
2... d5 {[%clk 0:02:59]} 3. Nd2 {[%clk 0:03:00.6]} 3... c5 {[%clk 0:02:58.4]} 4.
c3 {[%clk 0:02:58.3]} 4... cxd4 {[%clk 0:02:55.4]} 5. cxd4 {[%clk 0:02:58.5]}
5... dxe4 {[%clk 0:02:55.2]} 6. Nxe4 {[%clk 0:02:58.6]} 6... Nc6 {[%clk
0:02:55.5]} 7. Nf3 {[%clk 0:02:58.5]} 7... Nf6 {[%clk 0:02:55.1]} 8. Bg5 {[%clk
0:02:55.8]} 8... Be7 {[%clk 0:02:55.2]} 9. Bxf6 {[%clk 0:02:51.6]} 9... Bxf6
{[%clk 0:02:56.1]} 10. Nxf6+ {[%clk 0:02:51.7]} 10... Qxf6 {[%clk 0:02:56.8]}
11. Bb5 {[%clk 0:02:49.4]} 11... O-O {[%clk 0:02:55.5]} 12. O-O {[%clk
0:02:48.3]} 12... Rd8 {[%clk 0:02:54.2]} 13. Bxc6 {[%clk 0:02:47.6]} 13... bxc6
{[%clk 0:02:55.1]} 14. Rc1 {[%clk 0:02:47.7]} 14... Ba6 {[%clk 0:02:46.7]} 15.
Re1 {[%clk 0:02:44.4]} 15... Rac8 {[%clk 0:02:46.9]} 16. Qa4 {[%clk 0:02:39.2]}
16... Bd3 {[%clk 0:02:29.6]} 17. Ne5 {[%clk 0:02:28.7]} 17... Bb5 {[%clk
0:02:17.3]} 18. Qb4 {[%clk 0:02:14.4]} 18... Qf4 {[%clk 0:01:29.1]} 19. a4
{[%clk 0:01:52.8]} 19... Rxd4 {[%clk 0:01:28.2]} 20. Qxd4 {[%clk 0:01:34.7]}
20... Qxd4 {[%clk 0:01:25]} 21. axb5 {[%clk 0:01:35.2]} 21... c5 {[%clk
0:01:17.5]} 22. Nc6 {[%clk 0:01:34.1]} 22... Qd7 {[%clk 0:01:11.9]} 23. Red1
{[%clk 0:01:25]} 23... Qb7 {[%clk 0:00:54.1]} 24. Rxc5 {[%clk 0:01:23.9]} 24...
Re8 {[%clk 0:00:50.3]} 25. b4 {[%clk 0:01:16.8]} 25... g6 {[%clk 0:00:46.7]} 26.
Ne5 {[%clk 0:01:09.5]} 26... Rc8 {[%clk 0:00:29.2]} 27. Rd7 {[%clk 0:01:07]}
27... Rxc5 {[%clk 0:00:25.1]} 28. bxc5 {[%clk 0:00:27.7]} 28... Qxb5 {[%clk
0:00:24.1]} 29. h3 {[%clk 0:00:20.4]} 29... Qxc5 {[%clk 0:00:11.6]} 30. Nxf7
{[%clk 0:00:20.5]} 30... Qc6 {[%clk 0:00:09.3]} 31. Nh6+ {[%clk 0:00:19.6]}
31... Kf8 {[%clk 0:00:08.6]} 32. Rxh7 {[%clk 0:00:18.8]} 32... Qc1+ {[%clk
0:00:08.7]} 33. Kh2 {[%clk 0:00:18.7]} 33... Qf4+ {[%clk 0:00:09.6]} 34. Kg1
{[%clk 0:00:18.6]} 34... a5 {[%clk 0:00:09.6]} 35. g3 {[%clk 0:00:18.1]} 35...
Qc1+ {[%clk 0:00:08.4]} 36. Kh2 {[%clk 0:00:17.2]} 36... a4 {[%clk 0:00:08.7]}
37. Ra7 {[%clk 0:00:10.9]} 37... a3 {[%clk 0:00:08.8]} 38. Ng4 {[%clk
0:00:09.1]} 38... Qb2 {[%clk 0:00:08]} 39. Ra8+ {[%clk 0:00:06.6]} 39... Ke7
{[%clk 0:00:07.5]} 40. Ra7+ {[%clk 0:00:07.2]} 40... Kd6 {[%clk 0:00:07]} 41.
Kg2 {[%clk 0:00:05.2]} 41... a2 {[%clk 0:00:06.3]} 42. Ne3 {[%clk 0:00:05.8]}
42... Kc5 {[%clk 0:00:05.9]} 43. Rc7+ {[%clk 0:00:01.6]} 43... Kb6 {[%clk
0:00:03.6]} 0-1

[Event "Early-Titled-Tuesday-Blitz-October-10-2023"]
[Site "Chess.com"]
[Date "2023.10.10"]
[Round "6"]
[White "kirillshevchenko"]
[Black "mishanick"]
[Result "0-1"]
[WhiteElo "2971"]
[BlackElo "3090"]
[TimeControl "180+1"]
[EndTime "9:05:14 PDT"]
[Termination "mishanick won on time"]

1. c4 {[%clk 0:02:54.1]} 1... e6 {[%clk 0:03:00.1]} 2. g3 {[%clk 0:02:53.4]}
2... d5 {[%clk 0:03:00.2]} 3. Bg2 {[%clk 0:02:54.3]} 3... Nf6 {[%clk 0:02:59.7]}
4. Nf3 {[%clk 0:02:54.4]} 4... Be7 {[%clk 0:03:00.4]} 5. O-O {[%clk 0:02:54.8]}
5... O-O {[%clk 0:03:01.1]} 6. b3 {[%clk 0:02:51.9]} 6... d4 {[%clk 0:02:58.3]}
7. e3 {[%clk 0:02:45.5]} 7... c5 {[%clk 0:02:58.8]} 8. exd4 {[%clk 0:02:44.1]}
8... cxd4 {[%clk 0:02:59.7]} 9. Ne5 {[%clk 0:02:40.5]} 9... Qc7 {[%clk
0:02:59.8]} 10. Re1 {[%clk 0:02:32.5]} 10... Nfd7 {[%clk 0:03:00.3]} 11. Qe2
{[%clk 0:02:32.8]} 11... Nxe5 {[%clk 0:02:55.9]} 12. Qxe5 {[%clk 0:02:32.9]}
12... Qxe5 {[%clk 0:02:56.6]} 13. Rxe5 {[%clk 0:02:33.7]} 13... Nd7 {[%clk
0:02:57.1]} 14. Re4 {[%clk 0:02:12.1]} 14... Nc5 {[%clk 0:02:57.1]} 15. Rxd4
{[%clk 0:02:11]} 15... Bf6 {[%clk 0:02:57.4]} 16. Bb2 {[%clk 0:02:11.8]} 16...
Nd3 {[%clk 0:02:56.8]} 17. Bc3 {[%clk 0:02:11.3]} 17... Bxd4 {[%clk 0:02:57.2]}
18. Bxd4 {[%clk 0:02:12.2]} 18... Rd8 {[%clk 0:02:57.5]} 19. Be3 {[%clk
0:02:12.4]} 19... Nb4 {[%clk 0:02:47]} 20. Nc3 {[%clk 0:02:10.7]} 20... Nc2
{[%clk 0:02:47]} 21. Rd1 {[%clk 0:02:10.8]} 21... Nxe3 {[%clk 0:02:46.8]} 22.
fxe3 {[%clk 0:02:11.7]} 22... Rb8 {[%clk 0:02:46]} 23. d4 {[%clk 0:02:12]} 23...
b6 {[%clk 0:02:45.1]} 24. Kf2 {[%clk 0:02:05.9]} 24... Bb7 {[%clk 0:02:43.6]}
25. Bxb7 {[%clk 0:02:05.7]} 25... Rxb7 {[%clk 0:02:44.5]} 26. e4 {[%clk
0:02:06.6]} 26... a6 {[%clk 0:02:43]} 27. Ke3 {[%clk 0:01:53.6]} 27... Rc7
{[%clk 0:02:41]} 28. a4 {[%clk 0:01:43]} 28... Kf8 {[%clk 0:02:36.3]} 29. g4
{[%clk 0:01:43]} 29... Ke7 {[%clk 0:02:35.8]} 30. h4 {[%clk 0:01:37.7]} 30... h6
{[%clk 0:02:35.4]} 31. d5 {[%clk 0:01:17]} 31... f6 {[%clk 0:02:33.6]} 32. Kd4
{[%clk 0:01:11.3]} 32... e5+ {[%clk 0:02:26.2]} 33. Kd3 {[%clk 0:01:10.1]} 33...
Kd6 {[%clk 0:02:22.9]} 34. Rb1 {[%clk 0:00:36.2]} 34... h5 {[%clk 0:02:22.9]}
35. Rg1 {[%clk 0:00:30.3]} 35... hxg4 {[%clk 0:02:20]} 36. Rxg4 {[%clk
0:00:31.2]} 36... Kc5 {[%clk 0:02:19.1]} 37. Na2 {[%clk 0:00:31.7]} 37... a5
{[%clk 0:02:19.3]} 38. Kc3 {[%clk 0:00:30.7]} 38... Rh8 {[%clk 0:02:17.4]} 39.
Nc1 {[%clk 0:00:28.6]} 39... Rh6 {[%clk 0:02:17.5]} 40. Nd3+ {[%clk 0:00:28.6]}
40... Kd6 {[%clk 0:02:18.1]} 41. Nf2 {[%clk 0:00:23.1]} 41... g6 {[%clk
0:02:16.3]} 42. Nd3 {[%clk 0:00:19.4]} 42... f5 {[%clk 0:02:05.2]} 43. Rg5
{[%clk 0:00:18.5]} 43... Rf7 {[%clk 0:02:00.3]} 44. b4 {[%clk 0:00:14.3]} 44...
axb4+ {[%clk 0:01:58]} 45. Kxb4 {[%clk 0:00:15.2]} 45... Rf6 {[%clk 0:01:52]}
46. a5 {[%clk 0:00:14.9]} 46... bxa5+ {[%clk 0:01:47.4]} 47. Kxa5 {[%clk
0:00:15.2]} 47... fxe4 {[%clk 0:01:47.6]} 48. Nxe5 {[%clk 0:00:13.5]} 48... Rf5
{[%clk 0:00:58.3]} 49. Rxf5 {[%clk 0:00:06.6]} 49... gxf5 {[%clk 0:00:57.1]} 50.
Nf7+ {[%clk 0:00:07]} 50... Kc5 {[%clk 0:00:40.6]} 51. d6 {[%clk 0:00:05.5]}
51... Rxd6 {[%clk 0:00:28.5]} 52. Nxd6 {[%clk 0:00:05.7]} 52... e3 {[%clk
0:00:28]} 53. Nb7+ {[%clk 0:00:01.6]} 53... Kd4 {[%clk 0:00:26.7]} 0-1

[Event "Early-Titled-Tuesday-Blitz-October-10-2023"]
[Site "Chess.com"]
[Date "2023.10.10"]
[Round "6"]
[White "BlueWizzard"]
[Black "Man-Chuk"]
[Result "1/2-1/2"]
[WhiteElo "2918"]
[BlackElo "2765"]
[TimeControl "180+1"]
[EndTime "9:05:14 PDT"]
[Termination "Game drawn by repetition"]

1. d4 {[%clk 0:03:00.9]} 1... Nf6 {[%clk 0:02:59.9]} 2. Nc3 {[%clk 0:03:01]}
2... d5 {[%clk 0:02:59.1]} 3. Bg5 {[%clk 0:03:00.9]} 3... Bf5 {[%clk 0:02:51.2]}
4. h4 {[%clk 0:03:00.3]} 4... h6 {[%clk 0:02:48]} 5. Bf4 {[%clk 0:02:58.4]} 5...
e6 {[%clk 0:02:46.9]} 6. f3 {[%clk 0:02:51.1]} 6... Bd6 {[%clk 0:02:44.8]} 7.
Qd2 {[%clk 0:02:51.1]} 7... Bxf4 {[%clk 0:01:55]} 8. Qxf4 {[%clk 0:02:52]} 8...
Qd6 {[%clk 0:01:55.1]} 9. Qxd6 {[%clk 0:02:42.5]} 9... cxd6 {[%clk 0:01:56]} 10.
g4 {[%clk 0:02:39.6]} 10... Bxc2 {[%clk 0:01:28.2]} 11. Rc1 {[%clk 0:02:39.2]}
11... Bh7 {[%clk 0:01:27]} 12. Nxd5 {[%clk 0:02:37.1]} 12... Na6 {[%clk
0:01:12.2]} 13. Nxf6+ {[%clk 0:02:29.9]} 13... gxf6 {[%clk 0:01:13.1]} 14. e4
{[%clk 0:02:30.1]} 14... O-O {[%clk 0:00:51.2]} 15. Bxa6 {[%clk 0:02:08.1]}
15... bxa6 {[%clk 0:00:51.3]} 16. Ne2 {[%clk 0:02:04.8]} 16... Rab8 {[%clk
0:00:35.4]} 17. b3 {[%clk 0:02:01.9]} 17... Rfd8 {[%clk 0:00:26.7]} 18. Nf4
{[%clk 0:01:44.2]} 18... Rb4 {[%clk 0:00:26.3]} 19. Nh5 {[%clk 0:01:38.9]} 19...
Rxd4 {[%clk 0:00:24.7]} 20. Rc7 {[%clk 0:01:18.9]} 20... Bg6 {[%clk 0:00:23.5]}
21. Nxf6+ {[%clk 0:01:12]} 21... Kg7 {[%clk 0:00:23.9]} 22. Nh5+ {[%clk
0:01:12]} 22... Bxh5 {[%clk 0:00:24.2]} 23. gxh5 {[%clk 0:01:12.7]} 23... a5
{[%clk 0:00:20.6]} 24. Ke2 {[%clk 0:01:04]} 24... a4 {[%clk 0:00:21]} 25. Rxa7
{[%clk 0:00:57.1]} 25... axb3 {[%clk 0:00:21.2]} 26. Rg1+ {[%clk 0:00:55.8]}
26... Kf6 {[%clk 0:00:21.1]} 27. axb3 {[%clk 0:00:54.6]} 27... Rb8 {[%clk
0:00:21]} 28. Rc1 {[%clk 0:00:50.6]} 28... Rxb3 {[%clk 0:00:21]} 29. Rcc7 {[%clk
0:00:50.5]} 29... Ke5 {[%clk 0:00:17.9]} 30. Ra5+ {[%clk 0:00:43.3]} 30... Kf4
{[%clk 0:00:12.8]} 31. Rxf7+ {[%clk 0:00:43]} 31... Kg3 {[%clk 0:00:13.3]} 32.
Rg7+ {[%clk 0:00:37]} 32... Kh3 {[%clk 0:00:05.8]} 33. Ra1 {[%clk 0:00:33.2]}
33... Kh2 {[%clk 0:00:05.1]} 34. Ra2 {[%clk 0:00:24.4]} 34... e5 {[%clk
0:00:04.5]} 35. Kf2 {[%clk 0:00:19.9]} 35... Rb1 {[%clk 0:00:02]} 36. Rg6 {[%clk
0:00:16.6]} 36... Kh3 {[%clk 0:00:02.3]} 37. Rg3+ {[%clk 0:00:15.5]} 37... Kxh4
{[%clk 0:00:01.8]} 38. Rg4+ {[%clk 0:00:16.4]} 38... Kh3 {[%clk 0:00:02.3]} 39.
Ke3 {[%clk 0:00:17.3]} 39... Re1+ {[%clk 0:00:01.9]} 40. Re2 {[%clk 0:00:16]}
40... Red1 {[%clk 0:00:02.8]} 41. Rg6 {[%clk 0:00:15.2]} 41... R4d3+ {[%clk
0:00:02.2]} 42. Kf2 {[%clk 0:00:15.8]} 42... Rh1 {[%clk 0:00:02.3]} 43. Rg3+
{[%clk 0:00:14.6]} 43... Kh4 {[%clk 0:00:02.5]} 44. Kg2 {[%clk 0:00:14.9]} 44...
Rdd1 {[%clk 0:00:01.2]} 45. Rg4+ {[%clk 0:00:14.5]} 45... Kxh5 {[%clk
0:00:01.8]} 46. Kf2 {[%clk 0:00:15]} 46... Rdf1+ {[%clk 0:00:02.1]} 47. Ke3
{[%clk 0:00:15.4]} 47... Re1 {[%clk 0:00:02.7]} 48. Kf2 {[%clk 0:00:14.7]} 48...
Rxe2+ {[%clk 0:00:03.1]} 49. Kxe2 {[%clk 0:00:15.6]} 49... Rb1 {[%clk
0:00:02.9]} 50. Ke3 {[%clk 0:00:15.6]} 50... Rb3+ {[%clk 0:00:03.2]} 51. Ke2
{[%clk 0:00:15.9]} 51... Rb2+ {[%clk 0:00:03.6]} 52. Ke3 {[%clk 0:00:16.3]}
52... Rb3+ {[%clk 0:00:04.4]} 53. Kf2 {[%clk 0:00:16.9]} 53... Rb4 {[%clk
0:00:04.6]} 54. Ke3 {[%clk 0:00:16.8]} 54... Rb3+ {[%clk 0:00:03.5]} 1/2-1/2